fUSD/lending_fUSD_20240404
["ID","MTS","AMOUNT","RATE_DAILY","PERIOD"]
[321470602,1712205094505,-1292.21,0.00052602,120]
[321470603,1712205094515,-533.76217971,0.00052602,120]
[321470604,1712205094524,-6835.54,0.00052602,120]
[321470605,1712205094536,-500.0,0.00052602,120]
[321470606,1712205094545,-2636.23,0.00052602,120]
[321470607,1712205094554,-614.29,0.00052602,120]
[321470608,1712205094565,-2413.37,0.00052602,120]
[321470609,1712205094574,-1669.21,0.00052602,120]
[321470610,1712205094583,-560.72,0.00052602,120]
[321470611,1712205094592,-1926.24,0.00052602,120]
[321470612,1712205094601,-500.0,0.00052602,120]
[321470613,1712205094611,-690.28,0.00052602,120]
[321470614,1712205094622,-532.24,0.00052602,120]
[321470615,1712205094631,-673.57,0.00052602,120]
[321470616,1712205094641,-500.0,0.00052602,120]
[321470617,1712205094652,-1990.16,0.00052602,120]
[321470618,1712205094662,-5699.44,0.00052602,120]
[321470619,1712205094671,-747.68,0.00052602,120]
[321470620,1712205094682,-325.7983238,0.00052602,120]
[321470621,1712205094692,-871.75,0.00052602,120]
[321470622,1712205094702,-1134.76,0.00052602,120]
[321470623,1712205094713,-1852.1,0.00052602,7]
[321470624,1712205094724,-2775.68,0.00052602,120]
[321470625,1712205094734,-6399.43,0.00052602,120]
[321470626,1712205094745,-542.34020319,0.00052602,120]
[321470627,1712205094755,-500.0,0.00052602,120]
[321470628,1712205094765,-941.86,0.00052602,120]
[321470629,1712205094774,-1100.83,0.00052602,120]
[321470630,1712205094783,-500.0,0.00052602,120]
[321470631,1712205094792,-8100.11,0.00052602,120]
[321470632,1712205094802,-500.0,0.00052602,120]
[321470633,1712205094811,-500.0,0.00052602,120]
[321470634,1712205094821,-1665.56,0.00052602,120]
[321470635,1712205094831,-500.0,0.00052602,120]
[321470636,1712205094842,-12647.89,0.00052602,120]
[321470637,1712205094853,-500.0,0.00052602,120]
[321470638,1712205094863,-500.0,0.00052602,120]
[321470639,1712205094872,-1265.23,0.00052602,120]
[321470640,1712205094882,-500.0,0.00052602,120]
[321470641,1712205094892,-552.28,0.00052602,120]
[321470642,1712205094902,-1011.59,0.00052602,120]
[321470643,1712205094911,-1253.38,0.00052602,120]
[321470644,1712205094920,-551.64776235,0.00052602,120]
[321470645,1712205094929,-2437.96,0.00052602,120]
[321470646,1712205094938,-500.0,0.00052602,120]
[321470647,1712205094947,-3480.11,0.00052602,120]
[321470648,1712205094957,-777.91,0.00052602,120]
[321470649,1712205094967,-479.03037831,0.00052602,120]
[321470650,1712205094976,-500.0,0.00052602,120]
[321470651,1712205094985,-965.52,0.00052602,120]
[321470652,1712205094994,-1939.99,0.00052602,120]
[321470653,1712205095003,-881.61,0.00052602,120]
[321470654,1712205095013,-500.0,0.00052602,120]
[321470655,1712205095022,-500.0,0.00052602,120]
[321470656,1712205095031,-2571.32,0.00052602,120]
[321470657,1712205095040,-3309.16,0.00052602,120]
[321470658,1712205095054,-2476.89,0.00052602,120]
[321470659,1712205095063,-500.0,0.00052602,120]
[321470660,1712205095073,-500.0,0.00052602,120]
[321470661,1712205095082,-588.17,0.00052602,120]
[321470662,1712205095091,-1648.98,0.00052602,120]
[321470663,1712205095101,-500.0,0.00052602,120]
[321470664,1712205095111,-1872.11,0.00052602,120]
[321470665,1712205095121,-2494.98,0.00052602,120]
[321470666,1712205095130,-571.44,0.00052602,120]
[321470667,1712205095139,-500.0,0.00052602,120]
[321470668,1712205095149,-771.63,0.00052602,120]
[321470669,1712205095158,-4066.04,0.00052602,120]
[321470670,1712205095167,-500.0,0.00052602,120]
[321470671,1712205095177,-500.0,0.00052602,120]
[321470672,1712205095186,-549.4462551,0.00052602,120]
[321470673,1712205095195,-2429.57,0.00052602,120]
[321470674,1712205095205,-1719.99,0.00052602,120]
[321470675,1712205095214,-2376.39,0.00052602,120]
[321470676,1712205095224,-3283.89,0.00052602,120]
[321470677,1712205095233,-5606.0,0.00052602,120]
[321470678,1712205095242,-627.51,0.00052602,120]
[321470679,1712205095251,-658.56,0.00052602,120]
[321470680,1712205095261,-680.97,0.00052602,120]
[321470681,1712205095270,-1697.6,0.00052602,120]
[321470682,1712205095279,-1208.03,0.00052602,120]
[321470683,1712205095293,-902.7,0.00052602,120]
[321470684,1712205095302,-752.9,0.00052602,120]
[321470685,1712205095311,-627.02070501,0.00052602,120]
[321470686,1712205095322,-2345.81,0.00052602,120]
[321470687,1712205095331,-2703.79,0.00052602,120]
[321470688,1712205095340,-1470.5,0.00052602,120]
[321470689,1712205095350,-500.0,0.00052602,120]
[321470690,1712205095360,-500.0,0.00052602,120]
[321470691,1712205095369,-2947.7,0.00052602,120]
[321470692,1712205095379,-3729.05,0.00052602,120]
[321470693,1712205095389,-3940.03,0.00052602,120]
[321470694,1712205095398,-500.0,0.00052602,120]
[321470695,1712205095407,-595.65,0.00052602,120]
[321470696,1712205095417,-500.0,0.00052602,120]
[321470697,1712205095427,-3031.42,0.00052602,120]
[321470698,1712205095437,-3107.18,0.00052602,120]
[321470699,1712205095446,-500.0,0.00052602,120]
[321470700,1712205095455,-924.61,0.00052602,120]
[321470701,1712205095465,-500.0,0.00052602,120]
[321470702,1712205095475,-3097.18,0.00052602,120]
[321470703,1712205095485,-500.0,0.00052602,120]
[321470704,1712205095495,-500.0,0.00052602,120]
[321470705,1712205095505,-790.05,0.00052602,120]
[321470706,1712205095514,-1346.47,0.00052602,120]
[321470707,1712205095524,-500.0,0.00052602,120]
[321470708,1712205095534,-2784.95,0.00052602,120]
[321470709,1712205095543,-648.73,0.00052602,120]
[321470710,1712205095555,-500.0,0.00052602,120]
[321470711,1712205095564,-1479.97,0.00052602,120]
[321470712,1712205095574,-500.0,0.00052602,120]
[321470713,1712205095583,-500.0,0.00052602,120]
[321470714,1712205095593,-500.0,0.00052602,120]
[321470715,1712205095603,-3455.77,0.00052602,120]
[321470716,1712205095612,-500.0,0.00052602,120]
[321470717,1712205095622,-3175.76,0.00052602,120]
[321470718,1712205095631,-2739.86,0.00052602,120]
[321470719,1712205095641,-1313.71,0.00052602,120]
[321470720,1712205095650,-4665.17,0.00052602,120]
[321470721,1712205095660,-735.54,0.00052602,120]
[321470722,1712205095670,-1097.27,0.00052602,120]
[321470723,1712205095680,-799.28,0.00052602,120]
[321470724,1712205095689,-672.19,0.00052602,120]
[321470725,1712205095699,-500.0,0.00052602,120]
[321470726,1712205095709,-500.0,0.00052602,120]
[321470727,1712205095719,-500.0,0.00052602,120]
[321470728,1712205095729,-5949.11,0.00052602,120]
[321470729,1712205095739,-500.0,0.00052602,120]
[321470730,1712205095749,-2791.3,0.00052602,120]
[321470731,1712205095758,-14921.22,0.00052602,120]
[321470732,1712205095768,-18245.67,0.00052602,120]
[321470733,1712205095778,-4475.43,0.00052602,120]
[321470734,1712205095787,-6275.85,0.00052602,120]
[321470735,1712205095797,-500.0,0.00052602,120]
[321470736,1712205095807,-2018.13,0.00052602,120]
[321470737,1712205095816,-500.0,0.00052602,120]
[321470738,1712205095826,-1108.08,0.00052602,120]
[321470739,1712205095836,-173.09599656,0.00052602,120]
[321470740,1712205095846,-919.9,0.00052602,120]
[321470741,1712205095856,-6102.44,0.00052602,120]
[321470742,1712205096079,-2135.87,0.00052602,120]
[321470743,1712205096090,-5109.05,0.00052602,120]
[321470744,1712205096100,-500.0,0.00052602,120]
[321470745,1712205096109,-500.0,0.00052602,120]
[321470746,1712205096118,-992.63,0.00052602,120]
[321470747,1712205096128,-500.0,0.00052602,120]
[321470748,1712205096137,-600.0,0.00052602,2]
[321470749,1712205096147,-500.0,0.00052602,120]
[321470750,1712205096157,-23315.73,0.00052602,120]
[321470751,1712205096168,-4703.57,0.00052602,120]
[321470752,1712205096180,-4151.44,0.00052602,120]
[321470753,1712205096192,-500.0,0.00052602,120]
[321470754,1712205096203,-500.0,0.00052602,120]
[321470755,1712205096214,-6927.54,0.00052602,120]
[321470756,1712205096225,-41356.64,0.00052602,120]
[321470757,1712205096237,-615.36,0.00052602,120]
[321470758,1712205096247,-870.28,0.00052602,120]
[321470759,1712205096258,-500.0,0.00052602,120]
[321470760,1712205096273,-500.0,0.00052602,120]
[321470761,1712205096287,-1849.99,0.00052602,120]
[321470762,1712205096302,-15792.18,0.00052602,120]
[321470763,1712205096313,-1272.03,0.00052602,120]
[321470764,1712205096326,-2939.58,0.00052602,120]
[321470765,1712205096336,-3696.52,0.00052602,120]
[321470766,1712205096347,-1123.27,0.00052602,120]
[321470767,1712205096358,-3344.08,0.00052602,120]
[321470768,1712205096369,-500.0,0.00052602,120]
[321470769,1712205096379,-676.77,0.00052602,120]
[321470770,1712205096389,-500.0,0.00052602,120]
[321470771,1712205096399,-537.37,0.00052602,120]
[321470772,1712205096409,-1303.95,0.00052602,120]
[321470773,1712205096420,-500.0,0.00052602,120]
[321470774,1712205096430,-1733.35,0.00052602,7]
[321470775,1712205096441,-4080.08,0.00052602,120]
[321470776,1712205096451,-4886.13,0.00052602,120]
[321470777,1712205096463,-2129.0,0.00052602,120]
[321470778,1712205096473,-837.75,0.00052602,120]
[321470779,1712205096484,-1635.35,0.00052602,120]
[321470780,1712205096497,-1732.84,0.00052602,120]
[321470781,1712205096507,-5099.91,0.00052602,120]
[321470782,1712205096518,-1209.39,0.00052602,120]
[321470783,1712205096529,-509.97,0.00052602,120]
[321470784,1712205096539,-875.1,0.00052602,120]
[321470785,1712205096549,-3432.21,0.00052602,120]
[321470786,1712205096559,-1694.74,0.00052602,120]
[321470787,1712205096569,-575.29,0.00052602,120]
[321470788,1712205096578,-4905.13,0.00052602,120]
[321470789,1712205096588,-2782.34,0.00052602,120]
[321470790,1712205096598,-7766.11,0.00052602,120]
[321470791,1712205096609,-888.72,0.00052602,120]
[321470792,1712205096619,-3864.9,0.00052602,120]
[321470793,1712205096629,-751.57,0.00052602,120]
[321470794,1712205096640,-803.25,0.00052602,120]
[321470795,1712205096650,-500.0,0.00052602,120]
[321470796,1712205096660,-4562.2,0.00052602,120]
[321470797,1712205096672,-1987.82,0.00052602,120]
[321470798,1712205096683,-8315.86,0.00052602,30]
[321470799,1712205096692,-1851.98,0.00052602,120]
[321470800,1712205096703,-500.0,0.00052602,120]
[321470801,1712205096714,-2271.57,0.00052602,120]
[321470802,1712205096726,-500.0,0.00052602,120]
[321470803,1712205096739,-2487.96,0.00052602,120]
[321470804,1712205096749,-500.0,0.00052602,120]
[321470805,1712205096761,-1278.23,0.00052602,120]
[321470806,1712205096771,-2504.56,0.00052602,21]
[321470807,1712205096781,-2979.25,0.00052602,120]
[321470808,1712205096792,-2892.04,0.00052602,120]
[321470809,1712205096803,-1123.71,0.00052602,120]
[321470810,1712205096813,-1307.57,0.00052602,120]
[321470811,1712205096824,-5569.8,0.00052602,120]
[321470812,1712205096835,-3337.52,0.00052602,120]
[321470813,1712205096845,-929.17,0.00052602,120]
[321470814,1712205096855,-1125.88,0.00052602,120]
[321470815,1712205096866,-531.5,0.00052602,120]
[321470816,1712205096877,-1352.42,0.00052602,120]
[321470817,1712205096888,-1122.07,0.00052602,120]
[321470818,1712205096898,-500.0,0.00052602,120]
[321470819,1712205096909,-1213.04,0.00052602,120]
[321470820,1712205096920,-500.0,0.00052602,2]
[321470821,1712205096930,-1165.99,0.00052602,120]
[321470822,1712205096940,-2053.81,0.00052602,120]
[321470823,1712205096951,-5718.06,0.00052602,120]
[321470824,1712205096961,-20056.54,0.00052602,120]
[321470825,1712205096972,-312.98,0.00052602,30]
[321470826,1712205096981,-724.94,0.00052602,120]
[321470827,1712205096995,-4945.29,0.00052602,120]
[321470828,1712205097005,-1452.87,0.00052602,120]
[321470829,1712205097016,-500.0,0.00052602,120]
[321470830,1712205097026,-3353.7,0.00052602,120]
[321470831,1712205097036,-1029.43,0.00052602,120]
[321470832,1712205097046,-2841.02,0.00052602,120]
[321470833,1712205097055,-4342.51,0.00052602,120]
[321470834,1712205097065,-452.4904359,0.00052602,120]
[321470835,1712205097076,-2140.05,0.00052602,120]
[321470836,1712205097087,-500.0,0.00052602,120]
[321470837,1712205097097,-511.22593466,0.00052602,120]
[321470838,1712205097108,-500.0,0.00052602,120]
[321470839,1712205097119,-1521.74,0.00052602,120]
[321470840,1712205097129,-500.0,0.00052602,120]
[321470841,1712205097139,-4169.84,0.00052602,120]
[321470842,1712205097150,-705.27,0.00052602,120]
[321470843,1712205097160,-306.43854522,0.00052602,120]
[321470844,1712205097170,-509.61,0.00052602,120]
[321470845,1712205097180,-2080.39,0.00052602,120]
[321470846,1712205097190,-500.0,0.00052602,120]
[321470847,1712205097200,-6271.8,0.00052602,120]
[321470848,1712205097210,-500.0,0.00052602,2]
[321470849,1712205097220,-1236.67,0.00052602,120]
[321470850,1712205097230,-500.0,0.00052602,120]
[321470851,1712205097242,-2450.71,0.00052602,120]
[321470852,1712205097252,-500.0,0.00052602,120]
[321470853,1712205097262,-1883.85,0.00052602,120]
[321470854,1712205097273,-655.25,0.00052602,120]
[321470855,1712205097287,-540.54,0.00052602,120]
[321470856,1712205097296,-1887.51,0.00052602,120]
[321470857,1712205097306,-533.64750199,0.00052602,120]
[321470858,1712205097316,-10485.55,0.00052602,120]
[321470859,1712205097327,-500.0,0.00052602,120]
[321470860,1712205097336,-604.22994504,0.00052645,60]
[321470861,1712205097346,-500.0,0.00052657,120]
[321470862,1712205097356,-197.97595336,0.00052667,60]
[321470863,1712205097368,-510.18312938,0.00052671,60]
[321470864,1712205097377,-160.20412195,0.00052698,60]
[321470865,1712205097387,-500.0,0.00052712,120]
[321470866,1712205097397,-388.42808272,0.00052724,60]
[321470867,1712205097406,-310.929563,0.0005273,2]
[321470868,1712205097417,-388.42808272,0.00052741,60]
[321470869,1712205097426,-1182.53,0.00052754,2]
[321470870,1712205097437,-500.0,0.00052767,120]
[321470871,1712205097446,-151.0,0.00052767,120]
[321470872,1712205097457,-998.16,0.0005279,2]
[321470873,1712205097466,-157.040411,0.00052794,114]
[321470874,1712205097476,-701.12911996,0.00052795,120]
[321470875,1712205097487,-350.56455998,0.00052795,120]
[321470876,1712205097497,-150.0,0.000528,11]
[321470877,1712205097506,-200.0,0.0005285,15]
[321470878,1712205097515,-604.22994504,0.0005285,60]
[321470879,1712205097525,-510.18312938,0.00052858,60]
[321470880,1712205097535,-292.23916669,0.0005287,60]
[321470881,1712205097545,-270.7598411,0.00052873,2]
[321470882,1712205097554,-500.0,0.00052876,120]
[321470883,1712205097564,-500.0,0.00052876,120]
[321470884,1712205097573,-202.96455072,0.00052876,10]
[321470885,1712205097597,-661.04,0.00052876,120]
[321470886,1712205097615,-500.0,0.00052876,120]
[321470887,1712205097635,-500.0,0.00052876,120]
[321470888,1712205097656,-500.0,0.00052876,120]
[321470889,1712205097672,-688.56,0.00052876,120]
[321470890,1712205097690,-541.40159109,0.00052876,120]
[321470891,1712205097709,-500.0,0.00052876,2]
[321470892,1712205097729,-500.0,0.00052876,120]
[321470893,1712205097751,-677.25,0.00052876,120]
[321470894,1712205097768,-500.0,0.00052876,120]
[321470895,1712205097790,-500.0,0.00052876,120]
[321470896,1712205097811,-500.0,0.00052876,120]
[321470897,1712205097824,-500.0,0.00052876,120]
[321470898,1712205097842,-500.0,0.00052876,120]
[321470899,1712205097859,-532.20136124,0.00052876,120]
[321470900,1712205097876,-500.0,0.00052876,120]
[321470901,1712205097891,-500.0,0.00052876,120]
[321470902,1712205097909,-500.0,0.00052876,120]
[321470903,1712205097925,-2000.0,0.00052876,30]
[321470904,1712205097941,-500.0,0.00052876,120]
[321470905,1712205097968,-500.0,0.00052876,120]
[321470906,1712205097985,-500.0,0.00052876,120]
[321470907,1712205098002,-338.85949025,0.00052876,120]
[321470908,1712205098018,-500.0,0.00052876,120]
[321470909,1712205098034,-500.0,0.00052876,120]
[321470910,1712205098050,-500.0,0.00052876,120]
[321470911,1712205098066,-541.76,0.00052876,120]
[321470912,1712205098088,-500.0,0.00052876,120]
[321470913,1712205098105,-500.0,0.00052876,120]
[321470914,1712205098121,-1000.0,0.00052876,30]
[321470915,1712205098136,-635.94,0.00052876,120]
[321470916,1712205098152,-512.74,0.00052876,120]
[321470917,1712205098167,-565.44,0.00052876,120]
[321470918,1712205098182,-839.9,0.00052876,120]
[321470919,1712205098198,-500.0,0.00052876,120]
[321470920,1712205098213,-611.33,0.00052876,120]
[321470921,1712205098231,-500.0,0.00052876,120]
[321470922,1712205098247,-500.0,0.00052876,120]
[321470923,1712205098262,-500.0,0.00052876,120]
[321470924,1712205098277,-500.0,0.00052876,120]
[321470925,1712205098295,-500.0,0.00052876,120]
[321470926,1712205098311,-500.0,0.00052876,120]
[321470927,1712205098327,-500.0,0.00052876,120]
[321470928,1712205098343,-664.68,0.00052876,120]
[321470929,1712205098358,-557.90412913,0.00052876,120]
[321470930,1712205098374,-500.0,0.00052876,120]
[321470931,1712205098388,-500.0,0.00052876,120]
[321470932,1712205098403,-500.0,0.00052876,120]
[321470933,1712205098419,-500.0,0.00052876,120]
[321470934,1712205098433,-500.0,0.00052876,120]
[321470935,1712205098447,-699.19,0.00052876,120]
[321470936,1712205098462,-603.02,0.00052876,120]
[321470937,1712205098476,-446.222225,0.00052876,120]
[321470938,1712205098491,-500.0,0.00052876,120]
[321470939,1712205098507,-500.0,0.00052876,120]
[321470940,1712205098521,-211.35468552,0.00052876,120]
[321470941,1712205098536,-500.0,0.00052876,120]
[321470942,1712205098551,-185.17815508,0.00052876,120]
[321470943,1712205098565,-514.97,0.00052876,120]
[321470944,1712205098581,-580.58,0.00052876,120]
[321470945,1712205098595,-2268.34,0.00052876,120]
[321470946,1712205098611,-510.7,0.00052876,120]
[321470947,1712205098626,-648.77,0.00052876,120]
[321470948,1712205098641,-262.04102762,0.00052876,120]
[321470949,1712205098656,-500.0,0.00052876,120]
[321470950,1712205098671,-500.0,0.00052876,120]
[321470951,1712205098685,-500.0,0.00052876,120]
[321470952,1712205098700,-519.32,0.00052876,120]
[321470953,1712205098716,-646.89,0.00052876,120]
[321470954,1712205098731,-500.0,0.00052876,120]
[321470955,1712205098747,-500.0,0.00052876,120]
[321470956,1712205098763,-474.10719024,0.00052876,120]
[321470957,1712205098778,-500.0,0.00052876,120]
[321470958,1712205098793,-500.0,0.00052876,120]
[321470959,1712205098807,-500.0,0.00052876,120]
[321470960,1712205098822,-500.0,0.00052876,120]
[321470961,1712205098842,-594.72,0.00052876,120]
[321470962,1712205098857,-500.0,0.00052876,120]
[321470963,1712205098870,-500.0,0.00052876,120]
[321470964,1712205098884,-500.0,0.00052876,120]
[321470965,1712205098899,-500.0,0.00052876,120]
[321470966,1712205098913,-500.0,0.00052876,120]
[321470967,1712205098928,-500.0,0.00052876,120]
[321470968,1712205098943,-654.96,0.00052876,120]
[321470969,1712205098957,-653.18,0.00052876,120]
[321470970,1712205098972,-565.31,0.00052876,120]
[321470971,1712205098986,-500.0,0.00052876,120]
[321470972,1712205099002,-500.0,0.00052876,120]
[321470973,1712205099016,-532.21430485,0.00052876,120]
[321470974,1712205099031,-500.0,0.00052876,120]
[321470975,1712205099045,-856.28,0.00052876,120]
[321470976,1712205099057,-500.0,0.00052876,120]
[321470977,1712205099071,-500.0,0.00052876,120]
[321470978,1712205099085,-500.0,0.00052876,120]
[321470979,1712205099099,-540.62623868,0.00052876,120]
[321470980,1712205099113,-536.71578826,0.00052876,120]
[321470981,1712205099128,-500.0,0.00052876,120]
[321470982,1712205099143,-500.0,0.00052876,120]
[321470983,1712205099158,-500.0,0.00052876,120]
[321470984,1712205099173,-500.0,0.00052876,120]
[321470985,1712205099187,-500.0,0.00052876,120]
[321470986,1712205099202,-500.0,0.00052876,120]
[321470987,1712205099216,-382.37176886,0.00052876,120]
[321470988,1712205099231,-500.0,0.00052876,120]
[321470989,1712205099246,-538.5,0.00052876,120]
[321470990,1712205099261,-500.0,0.00052876,120]
[321470991,1712205099277,-500.0,0.00052876,120]
[321470992,1712205099296,-532.29,0.00052876,120]
[321470993,1712205099311,-500.0,0.00052876,120]
[321470994,1712205099328,-562.78,0.00052876,120]
[321470995,1712205099342,-500.0,0.00052876,120]
[321470996,1712205099359,-536.12,0.00052876,120]
[321470997,1712205099372,-745.92,0.00052876,120]
[321470998,1712205099387,-511.27,0.00052876,120]
[321470999,1712205099402,-510.35,0.00052876,120]
[321471000,1712205099417,-500.0,0.00052876,120]
[321471001,1712205099432,-636.22,0.00052876,120]
[321471002,1712205099447,-690.45,0.00052876,120]
[321471003,1712205099462,-500.0,0.00052876,120]
[321471004,1712205099476,-511.96682441,0.00052876,120]
[321471005,1712205099492,-500.0,0.00052876,120]
[321471006,1712205099507,-562.23781147,0.00052876,120]
[321471007,1712205099522,-628.45,0.00052876,120]
[321471008,1712205099538,-735.77,0.00052876,120]
[321471009,1712205099552,-500.0,0.00052876,120]
[321471010,1712205099566,-500.0,0.00052876,120]
[321471011,1712205099580,-500.0,0.00052876,120]
[321471012,1712205099595,-500.0,0.00052876,120]
[321471013,1712205099608,-500.0,0.00052876,120]
[321471014,1712205099622,-293.91518859,0.00052876,120]
[321471015,1712205099639,-500.0,0.00052876,120]
[321471016,1712205099654,-545.1,0.00052876,120]
[321471017,1712205099663,-150.0,0.00052876,120]
[321471018,1712205099673,-472.76960453,0.00052876,120]
[321471019,1712205099682,-500.0,0.00052876,120]
[321471020,1712205099691,-237.28784226,0.00052876,120]
[321471021,1712205099700,-500.0,0.00052876,120]
[321471022,1712205100027,-500.0,0.00052876,120]
[321471023,1712205100068,-500.0,0.00052876,120]
[321471024,1712205100083,-600.53451906,0.00052876,120]
[321471025,1712205100093,-500.0,0.00052876,120]
[321471026,1712205100103,-563.24751793,0.00052876,120]
[321471027,1712205100112,-500.0,0.00052876,120]
[321471028,1712205100122,-500.0,0.00052876,120]
[321471029,1712205100132,-500.0,0.00052876,120]
[321471030,1712205100141,-800.1,0.00052876,120]
[321471031,1712205100151,-500.0,0.00052876,120]
[321471032,1712205100160,-500.0,0.00052876,120]
[321471033,1712205100169,-500.0,0.00052876,120]
[321471034,1712205100178,-500.0,0.00052876,120]
[321471035,1712205100188,-500.0,0.00052876,120]
[321471036,1712205100197,-567.66149727,0.00052876,120]
[321471037,1712205100206,-500.0,0.00052876,120]
[321471038,1712205100215,-500.0,0.00052876,2]
[321471039,1712205100225,-821.48,0.00052876,120]
[321471040,1712205100235,-2626.36,0.00052876,120]
[321471041,1712205100246,-500.0,0.00052876,120]
[321471042,1712205100255,-500.0,0.00052876,120]
[321471043,1712205100265,-700.88,0.00052876,120]
[321471044,1712205100277,-545.47639436,0.00052876,120]
[321471045,1712205100288,-500.0,0.00052876,120]
[321471046,1712205100297,-500.0,0.00052876,120]
[321471047,1712205100307,-500.0,0.00052876,120]
[321471048,1712205100316,-534.21,0.00052876,120]
[321471049,1712205100325,-500.0,0.00052876,120]
[321471050,1712205100334,-640.37,0.00052876,120]
[321471051,1712205100344,-500.0,0.00052876,120]
[321471052,1712205100354,-500.0,0.00052876,120]
[321471053,1712205100363,-560.66,0.00052876,120]
[321471054,1712205100372,-567.70968308,0.00052876,120]
[321471055,1712205100382,-523.74,0.00052876,120]
[321471056,1712205100391,-555.67901077,0.00052876,120]
[321471057,1712205100400,-500.0,0.00052876,120]
[321471058,1712205100409,-1031.34,0.00052876,120]
[321471059,1712205100418,-500.0,0.00052876,120]
[321471060,1712205100427,-2164.24,0.00052876,120]
[321471061,1712205100437,-534.88,0.00052876,120]
[321471062,1712205100446,-500.0,0.00052876,120]
[321471063,1712205100455,-511.11374378,0.00052876,120]
[321471064,1712205100464,-500.0,0.00052876,120]
[321471065,1712205100474,-1197.71,0.00052876,120]
[321471066,1712205100482,-500.0,0.00052876,120]
[321471067,1712205100493,-500.0,0.00052876,120]
[321471068,1712205100502,-1386.48,0.00052876,120]
[321471069,1712205100512,-500.0,0.00052876,120]
[321471070,1712205100521,-638.42,0.00052876,120]
[321471071,1712205100531,-691.2,0.00052876,120]
[321471072,1712205100540,-500.0,0.00052876,120]
[321471073,1712205100549,-500.0,0.00052876,120]
[321471074,1712205100559,-500.0,0.00052876,2]
[321471075,1712205100568,-500.0,0.00052876,120]
[321471076,1712205100578,-551.94,0.00052876,120]
[321471077,1712205100587,-642.31,0.00052876,120]
[321471078,1712205100596,-1805.42,0.00052876,120]
[321471079,1712205100605,-874.06,0.00052876,120]
[321471080,1712205100615,-500.0,0.00052876,120]
[321471081,1712205100623,-1389.85,0.00052876,120]
[321471082,1712205100633,-523.4526695,0.00052876,120]
[321471083,1712205100643,-500.0,0.00052876,120]
[321471084,1712205100652,-500.0,0.00052876,120]
[321471085,1712205100661,-976.97,0.00052876,120]
[321471086,1712205100670,-500.0,0.00052876,120]
[321471087,1712205100679,-937.01,0.00052876,120]
[321471088,1712205100688,-500.0,0.00052876,120]
[321471089,1712205100697,-519.07999697,0.00052876,120]
[321471090,1712205100706,-500.0,0.00052876,120]
[321471091,1712205100716,-1034.34,0.00052876,120]
[321471092,1712205100725,-500.0,0.00052876,120]
[321471093,1712205100734,-500.0,0.00052876,120]
[321471094,1712205100745,-500.0,0.00052876,120]
[321471095,1712205100754,-500.0,0.00052876,120]
[321471096,1712205100763,-1621.35,0.00052876,120]
[321471097,1712205100772,-500.0,0.00052876,120]
[321471098,1712205100781,-500.0,0.00052876,120]
[321471099,1712205100790,-500.0,0.00052876,120]
[321471100,1712205100799,-1140.65,0.00052876,120]
[321471101,1712205100808,-946.04,0.00052876,120]